fUSD/lending_fUSD_20260616
["ID","MTS","AMOUNT","RATE_DAILY","PERIOD"]
[425147873,1781549464000,-150.0,0.00033219,30]
[425147923,1781549464000,-1372.0,0.00034144,30]
[425147890,1781549464000,-2500.0,0.000335,2]
[425147922,1781549464000,-154.843605,0.00034129,120]
[425147953,1781549464000,-5000.0,0.00034246,2]
[425147959,1781549464000,-546.37576025,0.000343,120]
[425147969,1781549464000,-500.0,0.00034453,2]
[425147964,1781549464000,-150.0,0.00034386,120]
[425147966,1781549464000,-154.700099,0.00034442,120]
[425147968,1781549464000,-500.0,0.00034453,2]
[425147970,1781549464000,-500.0,0.00034453,2]
[425147960,1781549464000,-253.2,0.000343,120]
[425147962,1781549464000,-1941.55733245,0.00034374,30]
[425147961,1781549464000,-3390.18454763,0.00034374,30]
[425147967,1781549464000,-734.64433512,0.00034453,60]
[425147963,1781549464000,-3169.93923176,0.00034374,30]
[425147972,1781549464000,-150.0,0.00034453,2]
[425147955,1781549464000,-150.0,0.00034247,30]
[425147973,1781549464000,-150.0,0.00034453,2]
[425147983,1781549464000,-300.79714257,0.00034497,2]
[425147982,1781549464000,-300.13707932,0.00034497,2]
[425147971,1781549464000,-150.0,0.00034453,2]
[425147981,1781549464000,-835.12773202,0.00034497,2]
[425147975,1781549464000,-150.0,0.00034453,2]
[425147978,1781549464000,-1721.58,0.00034459,5]
[425147976,1781549464000,-150.0,0.00034453,2]
[425147977,1781549464000,-254.0,0.00034455,2]
[425147979,1781549464000,-3195.0,0.00034464,10]
[425147974,1781549464000,-150.0,0.00034453,2]
[425147984,1781549464000,-300.0,0.00034497,2]
[425147985,1781549464000,-494.53026194,0.00034497,2]
[425147924,1781549464000,-154.0,0.00034144,30]
[425147980,1781549464000,-421.0,0.00034464,2]
[425147951,1781549464000,-5000.0,0.00034246,2]
[425147965,1781549464000,-150.0,0.00034386,120]
[425147948,1781549464000,-5000.0,0.00034246,2]
[425147929,1781549464000,-1311.0,0.00034147,30]
[425147950,1781549464000,-5010.54194764,0.00034246,2]
[425147931,1781549464000,-229.0,0.00034147,30]
[425147930,1781549464000,-189.0,0.00034147,30]
[425147925,1781549464000,-159.0,0.00034144,30]
[425147927,1781549464000,-151.0,0.00034144,30]
[425147926,1781549464000,-404.0,0.00034144,30]
[425147928,1781549464000,-247.0,0.00034147,30]
[425147932,1781549464000,-256.0,0.00034147,30]
[425147937,1781549464000,-150.0,0.00034175,120]
[425147935,1781549464000,-1561.0,0.00034147,30]
[425147934,1781549464000,-153.0,0.00034147,30]
[425147944,1781549464000,-153.0545,0.00034212,2]
[425147942,1781549464000,-150.0,0.0003419,2]
[425147936,1781549464000,-150.0,0.00034175,120]
[425147945,1781549464000,-5000.0,0.00034246,2]
[425147952,1781549464000,-5000.0,0.00034246,2]
[425147940,1781549464000,-150.0,0.00034175,120]
[425147949,1781549464000,-5000.0,0.00034246,2]
[425147947,1781549464000,-5000.0,0.00034246,2]
[425147958,1781549464000,-888.4175114,0.000343,120]
[425147957,1781549464000,-206.01,0.0003429,120]
[425147956,1781549464000,-2500.0,0.0003425,2]
[425147954,1781549464000,-5000.0,0.00034246,2]
[425147938,1781549464000,-150.0,0.00034175,120]
[425147946,1781549464000,-5000.0,0.00034246,2]
[425147943,1781549464000,-238.6,0.00034212,120]
[425147939,1781549464000,-150.0,0.00034175,120]
[425147941,1781549464000,-235.1,0.00034182,7]
[425148028,1781549465000,-241.53,0.00034521,120]
[425148027,1781549465000,-218.25,0.00034503,60]
[425148026,1781549465000,-256.7907144,0.00034503,60]
[425148025,1781549465000,-500.0,0.00034503,60]
[425148023,1781549465000,-500.0,0.00034503,60]
[425148024,1781549465000,-500.0,0.00034503,60]
[425148017,1781549465000,-300.0,0.00034497,2]
[425148020,1781549465000,-500.0,0.00034503,60]
[425148019,1781549465000,-647.35,0.000345,2]
[425148018,1781549465000,-300.0,0.00034497,2]
[425148029,1781549465000,-180.3757,0.00034526,2]
[425148034,1781549465000,-150.0,0.0003455,2]
[425148031,1781549465000,-921.0175,0.00034526,2]
[425148040,1781549465000,-250.0,0.00034569,7]
[425148032,1781549465000,-150.0,0.0003455,2]
[425148033,1781549465000,-150.0,0.0003455,2]
[425148035,1781549465000,-150.0,0.0003455,2]
[425148038,1781549465000,-180.34,0.00034569,120]
[425148047,1781549465000,-25000.0,0.00034603,10]
[425148037,1781549465000,-25000.0,0.00034568,10]
[425148036,1781549465000,-150.0,0.00034555,120]
[425148039,1781549465000,-1734.68,0.00034569,2]
[425148041,1781549465000,-411.0,0.00034575,2]
[425148042,1781549465000,-25000.0,0.00034577,10]
[425148045,1781549465000,-150.0,0.00034597,120]
[425148043,1781549465000,-25000.0,0.00034586,10]
[425148011,1781549465000,-835.12773202,0.00034497,2]
[425148030,1781549465000,-9210.2353,0.00034526,2]
[425148010,1781549465000,-300.0,0.00034497,2]
[425147989,1781549465000,-300.0,0.00034497,2]
[425148013,1781549465000,-1099.53596865,0.00034497,2]
[425148044,1781549465000,-25000.0,0.00034594,10]
[425147987,1781549465000,-549.99063219,0.00034497,2]
[425147992,1781549465000,-300.0,0.00034497,2]
[425147996,1781549465000,-310.80214287,0.00034497,2]
[425147986,1781549465000,-300.0,0.00034497,2]
[425147988,1781549465000,-302.96749636,0.00034497,2]
[425147991,1781549465000,-300.0,0.00034497,2]
[425147990,1781549465000,-300.53047099,0.00034497,2]
[425147995,1781549465000,-300.0,0.00034497,2]
[425147994,1781549465000,-952.86637483,0.00034497,2]
[425147998,1781549465000,-1346.16314365,0.00034497,2]
[425148008,1781549465000,-300.0,0.00034497,2]
[425147999,1781549465000,-300.0,0.00034497,2]
[425148021,1781549465000,-500.0,0.00034503,60]
[425147997,1781549465000,-300.0,0.00034497,2]
[425148005,1781549465000,-300.0,0.00034497,2]
[425148001,1781549465000,-300.0,0.00034497,2]
[425148007,1781549465000,-389.34689873,0.00034497,2]
[425148004,1781549465000,-300.0,0.00034497,2]
[425148006,1781549465000,-445.47580286,0.00034497,2]
[425148000,1781549465000,-596.47889358,0.00034497,2]
[425148003,1781549465000,-300.0,0.00034497,2]
[425148002,1781549465000,-513.2596001,0.00034497,2]
[425148016,1781549465000,-300.0,0.00034497,2]
[425148015,1781549465000,-300.0,0.00034497,2]
[425148012,1781549465000,-300.0,0.00034497,2]
[425148022,1781549465000,-500.0,0.00034503,60]
[425148014,1781549465000,-300.0,0.00034497,2]
[425148009,1781549465000,-300.0,0.00034497,2]
[425148046,1781549465000,-150.0,0.00034597,120]
[425147993,1781549465000,-345.24105339,0.00034497,2]
[425148048,1781549465000,-1871.1191774,0.00034612,2]
[425148081,1781549465000,-734.64433512,0.00034999,60]
[425148079,1781549465000,-319.84197749,0.00034933,30]
[425148085,1781549465000,-151.391,0.00035,2]
[425148087,1781549465000,-38365.39156305,0.00035,7]
[425148093,1781549465000,-168.20893723,0.00035,2]
[425148088,1781549465000,-800.0,0.00035,7]
[425148090,1781549465000,-291.0,0.00035,7]
[425148091,1781549465000,-800.0,0.00035,7]
[425148092,1781549465000,-800.0,0.00035,7]
[425148094,1781549465000,-500.0,0.00035,2]
[425148086,1781549465000,-38365.39156305,0.00035,7]
[425148096,1781549465000,-2395.96250601,0.00035,7]
[425148097,1781549465000,-708.37830297,0.00035,2]
[425148078,1781549465000,-150.0,0.00034932,30]
[425148089,1781549465000,-800.0,0.00035,7]
[425148109,1781549465000,-480.228121,0.00035,7]
[425148110,1781549465000,-183.548339,0.00035,7]
[425148099,1781549465000,-503.63415887,0.00035,7]
[425148098,1781549465000,-503.63415887,0.00035,7]
[425148101,1781549465000,-151.0,0.00035,7]
[425148100,1781549465000,-151.0,0.00035,7]
[425148102,1781549465000,-480.228121,0.00035,7]
[425148103,1781549465000,-151.0,0.00035,7]
[425148105,1781549465000,-151.0,0.00035,7]
[425148104,1781549465000,-480.228121,0.00035,7]
[425148106,1781549465000,-480.228121,0.00035,7]
[425148108,1781549465000,-151.0,0.00035,7]
[425148049,1781549465000,-25000.0,0.00034612,10]
[425148095,1781549465000,-2395.96250601,0.00035,7]
[425148080,1781549465000,-150.0,0.00034935,120]
[425148107,1781549465000,-151.0,0.00035,7]
[425148084,1781549465000,-150.0,0.00035,2]
[425148050,1781549465000,-25000.0,0.00034612,10]
[425148059,1781549465000,-1314.86420968,0.00034731,7]
[425148052,1781549465000,-162.45745728,0.00034638,2]
[425148051,1781549465000,-401.0,0.00034612,2]
[425148057,1781549465000,-302.2,0.000347,29]
[425148055,1781549465000,-4429.0,0.00034662,5]
[425148058,1781549465000,-152.230089,0.00034703,120]
[425148053,1781549465000,-9210.2353,0.0003465,2]
[425148077,1781549465000,-1000.0,0.000349,7]
[425148054,1781549465000,-1000.0,0.00034658,120]
[425148060,1781549465000,-1463.42935019,0.00034741,2]
[425148065,1781549465000,-512.78671096,0.00034783,30]
[425148061,1781549465000,-3390.18454763,0.00034756,30]
[425148071,1781549465000,-914.5963844,0.00034813,7]
[425148056,1781549465000,-4535.0,0.00034662,5]
[425148062,1781549465000,-1941.55733245,0.00034756,30]
[425148075,1781549465000,-397.5,0.00034886,30]
[425148064,1781549465000,-9210.2353,0.00034773,2]
[425148074,1781549465000,-734.64433512,0.00034872,60]
[425148072,1781549465000,-2497.432,0.00034835,40]
[425148076,1781549465000,-9210.2353,0.00034896,2]
[425148083,1781549465000,-150.0,0.00035,2]
[425148082,1781549465000,-250.0,0.00035,37]
[425148066,1781549465000,-166.33293086,0.00034787,30]
[425148068,1781549465000,-1000.0,0.000348,120]
[425148067,1781549465000,-1500.0,0.00034795,2]
[425148069,1781549465000,-150.0,0.00034808,120]
[425148070,1781549465000,-150.0,0.00034808,120]
[425148063,1781549465000,-3169.93923176,0.00034756,30]
[425148073,1781549465000,-1173.2129426,0.00034837,30]
[425148151,1781549466000,-302.210356,0.00035,7]
[425148155,1781549466000,-319.263798,0.00035,7]
[425148149,1781549466000,-151.0,0.00035,7]
[425148152,1781549466000,-319.263798,0.00035,7]
[425148160,1781549466000,-319.263798,0.00035,7]
[425148145,1781549466000,-1835.663357,0.00035,7]
[425148146,1781549466000,-319.263798,0.00035,7]
[425148148,1781549466000,-177.964498,0.00035,7]
[425148137,1781549466000,-203.332596,0.00035,7]
[425148147,1781549466000,-229.280161,0.00035,7]
[425148144,1781549466000,-203.332596,0.00035,7]
[425148150,1781549466000,-229.280161,0.00035,7]
[425148153,1781549466000,-295.983363,0.00035,7]
[425148167,1781549466000,-1677.027162,0.00035,7]
[425148156,1781549466000,-302.210356,0.00035,7]
[425148158,1781549466000,-171.877222,0.00035,7]
[425148154,1781549466000,-229.280161,0.00035,7]
[425148159,1781549466000,-229.280161,0.00035,7]
[425148161,1781549466000,-302.210356,0.00035,7]
[425148163,1781549466000,-1677.027162,0.00035,7]
[425148169,1781549466000,-1677.027162,0.00035,7]
[425148164,1781549466000,-435.129075,0.00035,7]
[425148162,1781549466000,-151.0,0.00035,7]
[425148165,1781549466000,-160.428375,0.00035,7]
[425148168,1781549466000,-435.129075,0.00035,7]
[425148170,1781549466000,-435.129075,0.00035,7]
[425148141,1781549466000,-1835.663357,0.00035,7]
[425148157,1781549466000,-1677.027162,0.00035,7]
[425148142,1781549466000,-151.0,0.00035,7]
[425148126,1781549466000,-151.0,0.00035,7]
[425148140,1781549466000,-203.332596,0.00035,7]
[425148166,1781549466000,-302.210356,0.00035,7]
[425148111,1781549466000,-151.0,0.00035,7]
[425148112,1781549466000,-151.0,0.00035,7]
[425148118,1781549466000,-301.136886,0.00035,7]
[425148114,1781549466000,-151.0,0.00035,7]
[425148122,1781549466000,-200.624177,0.00035,7]
[425148117,1781549466000,-301.136886,0.00035,7]
[425148120,1781549466000,-200.0,0.00035,120]
[425148119,1781549466000,-301.136886,0.00035,7]
[425148113,1781549466000,-175.46862,0.00035,7]
[425148115,1781549466000,-301.136886,0.00035,7]
[425148116,1781549466000,-151.0,0.00035,7]
[425148121,1781549466000,-196.795673,0.00035,7]
[425148138,1781549466000,-1835.663357,0.00035,7]
[425148124,1781549466000,-151.0,0.00035,7]
[425148135,1781549466000,-151.0,0.00035,2]
[425148123,1781549466000,-200.624177,0.00035,7]
[425148133,1781549466000,-1835.663357,0.00035,7]
[425148129,1781549466000,-151.0,0.00035,7]
[425148127,1781549466000,-151.0,0.00035,7]
[425148125,1781549466000,-200.624177,0.00035,7]
[425148128,1781549466000,-200.624177,0.00035,7]
[425148131,1781549466000,-151.0,0.00035,7]
[425148130,1781549466000,-151.0,0.00035,7]
[425148132,1781549466000,-203.332596,0.00035,7]
[425148136,1781549466000,-151.0,0.00035,7]
[425148139,1781549466000,-171.095494,0.00035,7]
[425148143,1781549466000,-151.0,0.00035,7]
[425148134,1781549466000,-221.810867,0.00035,7]
[425148171,1781549466000,-435.129075,0.00035,7]
[425148174,1781549466000,-151.0,0.00035,7]
[425148172,1781549466000,-244.723228,0.00035,7]
[425148205,1781549466000,-150.0,0.00035019,120]
[425148206,1781549466000,-164.42,0.0003503,30]
[425148208,1781549466000,-210.79390016,0.00035083,14]
[425148207,1781549466000,-154.41956,0.00035068,120]
[425148211,1781549466000,-3169.93923176,0.00035138,30]
[425148213,1781549466000,-1372.0,0.00035144,30]
[425148212,1781549466000,-9210.2353,0.00035143,2]
[425148221,1781549466000,-229.0,0.00035147,30]
[425148222,1781549466000,-256.0,0.00035147,30]
[425148217,1781549466000,-151.0,0.00035144,30]
[425148219,1781549466000,-1311.0,0.00035147,30]
[425148215,1781549466000,-159.0,0.00035144,30]
[425148216,1781549466000,-404.0,0.00035144,30]
[425148218,1781549466000,-247.0,0.00035147,30]
[425148220,1781549466000,-189.0,0.00035147,30]
[425148214,1781549466000,-154.0,0.00035144,30]
[425148224,1781549466000,-153.0,0.00035147,30]
[425148230,1781549466000,-150.0,0.00035285,2]
[425148226,1781549466000,-151.352115,0.00035212,3]
[425148229,1781549466000,-9210.2353,0.00035266,2]
[425148225,1781549466000,-1561.0,0.00035147,30]
[425148223,1781549466000,-220.0,0.00035147,30]
[425148227,1781549466000,-150.0,0.0003523,120]
[425148173,1781549466000,-151.0,0.00035,7]
[425148233,1781549466000,-150.0,0.00035287,14]
[425148231,1781549466000,-150.0,0.00035285,2]
[425148232,1781549466000,-150.0,0.00035285,2]
[425148204,1781549466000,-150.0,0.00035019,120]
[425148200,1781549466000,-173.707149,0.00035,7]
[425148228,1781549466000,-150.0,0.0003523,120]
[425148203,1781549466000,-9210.2353,0.00035019,2]
[425148201,1781549466000,-151.0,0.00035,7]
[425148175,1781549466000,-244.723228,0.00035,7]
[425148185,1781549466000,-317.56,0.00035,7]
[425148176,1781549466000,-151.0,0.00035,7]
[425148178,1781549466000,-966.738167,0.00035,7]
[425148179,1781549466000,-244.723228,0.00035,7]
[425148180,1781549466000,-151.0,0.00035,7]
[425148184,1781549466000,-966.738167,0.00035,7]
[425148181,1781549466000,-966.738167,0.00035,7]
[425148182,1781549466000,-151.0,0.00035,7]
[425148183,1781549466000,-966.738167,0.00035,7]
[425148188,1781549466000,-222.888937,0.00035,7]
[425148186,1781549466000,-222.888937,0.00035,7]
[425148197,1781549466000,-151.0,0.00035,7]
[425148177,1781549466000,-244.723228,0.00035,7]
[425148189,1781549466000,-151.0,0.00035,7]
[425148195,1781549466000,-469.301051,0.00035,7]
[425148209,1781549466000,-3390.18454763,0.00035138,30]
[425148202,1781549466000,-151.0,0.00035,7]
[425148198,1781549466000,-222.888937,0.00035,7]
[425148190,1781549466000,-469.301051,0.00035,7]
[425148199,1781549466000,-469.301051,0.00035,7]
[425148192,1781549466000,-151.0,0.00035,7]
[425148194,1781549466000,-151.0,0.00035,7]
[425148196,1781549466000,-151.0,0.00035,7]
[425148210,1781549466000,-1941.55733245,0.00035138,30]
[425148191,1781549466000,-151.0,0.00035,7]
[425148187,1781549466000,-469.301051,0.00035,7]
[425148193,1781549466000,-222.888937,0.00035,7]
[425148262,1781549467000,-614.7,0.00035578,14]
[425148260,1781549467000,-1049.49190731,0.00035553,120]
[425148267,1781549467000,-151.0,0.00035589,7]
[425148265,1781549467000,-1560.5,0.00035589,120]
[425148269,1781549467000,-151.0,0.00035589,7]
[425148264,1781549467000,-2064.0,0.00035589,120]
[425148263,1781549467000,-2064.0,0.00035589,120]
[425148271,1781549467000,-151.0,0.00035589,7]
[425148270,1781549467000,-418.665202,0.00035589,7]
[425148266,1781549467000,-1560.5,0.00035589,120]
[425148268,1781549467000,-151.0,0.00035589,7]
[425148278,1781549467000,-1512.028533,0.00035589,7]
[425148272,1781549467000,-418.665202,0.00035589,7]
[425148283,1781549467000,-236.375119,0.00035589,7]
[425148276,1781549467000,-418.665202,0.00035589,7]
[425148274,1781549467000,-170.284602,0.00035589,7]
[425148275,1781549467000,-1512.028533,0.00035589,7]
[425148281,1781549467000,-183.567664,0.00035589,7]
[425148280,1781549467000,-151.0,0.00035589,7]
[425148277,1781549467000,-1512.028533,0.00035589,7]
[425148279,1781549467000,-1512.028533,0.00035589,7]
[425148282,1781549467000,-151.0,0.00035589,7]
[425148261,1781549467000,-371.82532124,0.00035562,7]
[425148273,1781549467000,-418.665202,0.00035589,7]
[425148259,1781549467000,-3169.93923176,0.0003552,30]
[425148247,1781549467000,-164.42,0.0003546,69]
[425148258,1781549467000,-1941.55733245,0.0003552,30]
[425148284,1781549467000,-236.375119,0.00035589,7]
[425148234,1781549467000,-9000.0,0.000353,5]
[425148235,1781549467000,-1507.24,0.00035303,30]
[425148237,1781549467000,-150.0,0.00035315,120]
[425148238,1781549467000,-154.282528,0.00035382,120]
[425148236,1781549467000,-414.55,0.00035303,30]
[425148244,1781549467000,-1553.36,0.00035418,5]
[425148240,1781549467000,-921.0175,0.00035389,2]
[425148241,1781549467000,-744.37323866,0.000354,120]
[425148242,1781549467000,-208.24629698,0.000354,120]
[425148243,1781549467000,-215.49631673,0.000354,120]
[425148239,1781549467000,-9210.2353,0.00035389,2]
[425148245,1781549467000,-150.0,0.00035441,120]
[425148246,1781549467000,-150.0,0.00035441,120]
[425148249,1781549467000,-800.0,0.000355,7]
[425148248,1781549467000,-800.0,0.000355,7]
[425148250,1781549467000,-800.0,0.000355,7]
[425148254,1781549467000,-874.38,0.000355,120]
[425148257,1781549467000,-3390.18454763,0.0003552,30]
[425148252,1781549467000,-303.3,0.000355,120]
[425148256,1781549467000,-9210.2353,0.00035513,2]
[425148251,1781549467000,-800.0,0.000355,7]
[425148253,1781549467000,-1508.52,0.000355,120]
[425148255,1781549467000,-995.2,0.000355,120]
[425148285,1781549467000,-236.375119,0.00035589,7]
[425148293,1781549467000,-1000.0,0.00035616,120]
[425148288,1781549467000,-1502.95324118,0.000356,120]
[425148312,1781549467000,-9210.2353,0.00035759,2]
[425148313,1781549467000,-1000.0,0.0003578,120]
[425148315,1781549467000,-1000.0,0.00035835,120]
[425148318,1781549467000,-150.0,0.00035863,120]
[425148319,1781549467000,-150.0,0.00035863,120]
[425148311,1781549467000,-1000.0,0.00035753,120]
[425148322,1781549467000,-150.0,0.00035899,2]
[425148321,1781549467000,-1000.0,0.0003589,120]
[425148325,1781549467000,-164.42,0.000359,98]
[425148324,1781549467000,-2018.92,0.000359,120]
[425148323,1781549467000,-2018.92,0.000359,30]
[425148326,1781549467000,-278.0,0.000359,120]
[425148328,1781549467000,-1941.55733245,0.00035902,30]
[425148329,1781549467000,-3169.93923176,0.00035902,30]
[425148331,1781549467000,-1000.0,0.00035917,120]
[425148332,1781549467000,-1000.0,0.00035945,120]
[425148330,1781549467000,-150.061283,0.00035911,120]
[425148334,1781549467000,-500.0,0.00035951,2]
[425148338,1781549467000,-150.0,0.00035951,2]
[425148335,1781549467000,-150.0,0.00035951,2]
[425148336,1781549467000,-150.0,0.00035951,2]
[425148337,1781549467000,-150.0,0.00035951,2]
[425148286,1781549467000,-236.375119,0.00035589,7]
[425148320,1781549467000,-9210.2353,0.00035883,2]
[425148316,1781549467000,-4793.0,0.00035843,10]
[425148327,1781549467000,-3390.18454763,0.00035902,30]
[425148314,1781549467000,-1000.0,0.00035808,120]
[425148317,1781549467000,-1000.0,0.00035863,120]
[425148287,1781549467000,-151.0,0.00035589,7]
[425148295,1781549467000,-500.0,0.00035616,7]
[425148333,1781549467000,-500.0,0.00035951,2]
[425148294,1781549467000,-500.0,0.00035616,7]
[425148292,1781549467000,-600.0,0.00035616,120]
[425148296,1781549467000,-558.05732783,0.00035616,7]
[425148290,1781549467000,-195.46456916,0.00035616,30]
[425148291,1781549467000,-2000.0,0.00035616,30]
[425148298,1781549467000,-500.0,0.00035616,7]
[425148308,1781549467000,-154.147654,0.00035695,120]
[425148289,1781549467000,-150.0,0.00035616,60]
[425148304,1781549467000,-1000.0,0.00035643,120]
[425148300,1781549467000,-325.98,0.00035616,2]
[425148297,1781549467000,-500.0,0.00035616,7]
[425148301,1781549467000,-600.0,0.00035621,120]
[425148302,1781549467000,-314.0,0.00035627,120]
[425148299,1781549467000,-500.0,0.00035616,7]
[425148303,1781549467000,-9210.2353,0.00035636,2]
[425148307,1781549467000,-150.0,0.00035694,120]
[425148305,1781549467000,-150.0,0.00035652,120]
[425148306,1781549467000,-1000.0,0.00035671,120]
[425148309,1781549467000,-1000.0,0.00035698,120]
[425148310,1781549467000,-1000.0,0.00035726,120]
[425148379,1781549468000,-242.720724,0.00036179,120]
[425148380,1781549468000,-1000.0,0.00036191,120]
[425148372,1781549468000,-1000.0,0.00036109,120]
[425148389,1781549468000,-1941.55733245,0.00036284,30]
[425148378,1781549468000,-1684.0,0.00036164,2]
[425148376,1781549468000,-235.1,0.00036153,30]
[425148374,1781549468000,-1000.0,0.00036136,120]
[425148373,1781549468000,-9210.2353,0.00036129,2]
[425148371,1781549468000,-1021.93312338,0.000361,30]
[425148375,1781549468000,-500.0,0.0003615,120]
[425148384,1781549468000,-1000.0,0.00036246,120]
[425148370,1781549468000,-1021.93312338,0.000361,30]
[425148381,1781549468000,-23328.81,0.00036213,10]
[425148395,1781549468000,-1000.0,0.00036356,120]
[425148390,1781549468000,-3169.93923176,0.00036284,30]
[425148383,1781549468000,-1049.49190731,0.00036238,120]
[425148386,1781549468000,-921.0177,0.00036253,2]
[425148388,1781549468000,-3390.18454763,0.00036284,30]
[425148387,1781549468000,-1000.0,0.00036273,120]
[425148385,1781549468000,-9210.2363,0.00036253,2]
[425148392,1781549468000,-1000.0,0.00036301,120]
[425148403,1781549468000,-151.0,0.000364,30]
[425148402,1781549468000,-151.0,0.000364,30]
[425148393,1781549468000,-1000.0,0.00036328,120]
[425148391,1781549468000,-150.0,0.00036285,120]
[425148397,1781549468000,-564.0,0.00036379,3]
[425148369,1781549468000,-1021.93312339,0.000361,30]
[425148382,1781549468000,-1000.0,0.00036219,120]
[425148368,1781549468000,-927.66050344,0.000361,30]
[425148341,1781549468000,-208.22595019,0.00035996,120]
[425148377,1781549468000,-1000.0,0.00036164,120]
[425148340,1781549468000,-1000.0,0.00035972,120]
[425148339,1781549468000,-401.14229915,0.00035964,25]
[425148342,1781549468000,-800.0,0.00036,7]
[425148352,1781549468000,-150.0,0.0003602,2]
[425148396,1781549468000,-1431.02,0.00036377,5]
[425148343,1781549468000,-800.0,0.00036,7]
[425148344,1781549468000,-800.0,0.00036,7]
[425148348,1781549468000,-1000.0,0.00036,120]
[425148346,1781549468000,-800.0,0.00036,7]
[425148345,1781549468000,-167.0,0.00036,120]
[425148347,1781549468000,-706.0,0.00036,30]
[425148349,1781549468000,-5000.0,0.00036,30]
[425148351,1781549468000,-3722.04,0.00036009,10]
[425148366,1781549468000,-927.66050346,0.000361,30]
[425148350,1781549468000,-9210.2353,0.00036006,2]
[425148355,1781549468000,-1000.0,0.00036054,120]
[425148356,1781549468000,-150.0,0.00036074,120]
[425148357,1781549468000,-150.0,0.00036074,120]
[425148358,1781549468000,-150.0,0.00036074,120]
[425148361,1781549468000,-2374.03773842,0.000361,30]
[425148359,1781549468000,-25000.0,0.00036082,10]
[425148362,1781549468000,-2374.0377384,0.000361,30]
[425148360,1781549468000,-1000.0,0.00036082,120]
[425148364,1781549468000,-183.15452536,0.000361,30]
[425148363,1781549468000,-2374.0377384,0.000361,30]
[425148354,1781549468000,-1000.0,0.00036027,120]
[425148365,1781549468000,-183.15452535,0.000361,30]
[425148367,1781549468000,-927.66050344,0.000361,30]
[425148353,1781549468000,-150.0,0.0003602,2]
[425148401,1781549468000,-278.0,0.000364,120]
[425148394,1781549468000,-2507.23,0.00036349,10]
[425148398,1781549468000,-1000.0,0.00036383,120]
[425148442,1781549468000,-151.0,0.000364,30]
[425148434,1781549468000,-151.0,0.000364,30]
[425148440,1781549468000,-171.122704,0.000364,30]
[425148435,1781549468000,-151.0,0.000364,30]
[425148433,1781549468000,-250.563992,0.000364,30]
[425148437,1781549468000,-218.59,0.000364,60]
[425148436,1781549468000,-218.59,0.000364,90]
[425148438,1781549468000,-271.79168,0.000364,30]
[425148443,1781549468000,-169.702827,0.000364,30]
[425148448,1781549468000,-271.79168,0.000364,30]
[425148449,1781549468000,-169.702827,0.000364,30]
[425148450,1781549468000,-171.122704,0.000364,30]
[425148453,1781549468000,-226.637578,0.000364,30]
[425148441,1781549468000,-271.79168,0.000364,30]
[425148452,1781549468000,-226.637578,0.000364,30]
[425148454,1781549468000,-1037.076023,0.000364,30]
[425148445,1781549468000,-271.79168,0.000364,30]
[425148444,1781549468000,-171.122704,0.000364,30]
[425148446,1781549468000,-171.122704,0.000364,30]